fUST/lending_fUST_20250812
["ID","MTS","AMOUNT","RATE_DAILY","PERIOD"]
[378714078,1754986245766,-460.0,0.00018928,2]
[378714080,1754986245775,-460.0,0.00018928,2]
[378714082,1754986245785,-750.44,0.00018928,2]
[378714084,1754986245794,-759.41,0.00018928,2]
[378714086,1754986245804,-151.0,0.00018929,2]
[378714088,1754986245813,-151.0,0.00018929,2]
[378714089,1754986245823,-620.39691412,0.00018929,2]
[378714091,1754986245832,-158.64028859,0.00018929,2]
[378714093,1754986245842,-500.0,0.00018929,2]
[378714094,1754986245851,-500.0,0.00018929,2]
[378714095,1754986245861,-500.0,0.00018929,2]
[378714096,1754986245871,-3168.0,0.00018929,2]
[378714097,1754986245880,-500.0,0.00018929,2]
[378714098,1754986245889,-563.14,0.00018929,2]
[378714099,1754986245899,-460.0,0.00018929,2]
[378714100,1754986245907,-460.0,0.00018929,2]
[378714101,1754986245918,-460.0,0.00018929,2]
[378714102,1754986245927,-460.0,0.00018929,2]
[378714103,1754986245936,-460.0,0.00018929,2]
[378714104,1754986245947,-557.42,0.00018929,2]
[378714105,1754986245956,-869.32,0.00018929,2]
[378714106,1754986245966,-648.05,0.00018929,2]
[378714107,1754986245976,-460.0,0.00018929,2]
[378714108,1754986245986,-460.0,0.00018929,2]
[378714109,1754986245996,-460.0,0.00018929,2]
[378714110,1754986246005,-460.0,0.00018929,2]
[378714111,1754986246014,-432.08724865,0.00018929,2]
[378714112,1754986246028,-460.0,0.00018929,2]
[378714113,1754986246038,-460.0,0.00018929,2]
[378714114,1754986246048,-460.0,0.00018929,2]
[378714115,1754986246057,-460.0,0.00018929,2]
[378714116,1754986246066,-594.37,0.00018929,2]
[378714117,1754986246077,-460.0,0.00018929,2]
[378714118,1754986246088,-934.5,0.00018929,2]
[378714119,1754986246098,-515.43,0.00018929,2]
[378714120,1754986246107,-713.42,0.00018929,2]
[378714121,1754986246118,-220.35764857,0.00018929,2]
[378714122,1754986246127,-352.44816385,0.00018929,2]
[378714123,1754986246136,-460.0,0.00018929,2]
[378714124,1754986246146,-470.6,0.00018929,2]
[378714125,1754986246156,-747.12,0.00018929,2]
[378714126,1754986246166,-460.0,0.00018929,2]
[378714127,1754986246176,-460.0,0.00018929,2]
[378714128,1754986246187,-568.02975479,0.00018929,2]
[378714129,1754986246196,-460.0,0.00018929,2]
[378714130,1754986246206,-473.7148091,0.00018929,2]
[378714131,1754986246215,-413.77943958,0.00018929,2]
[378714132,1754986246225,-460.0,0.00018929,2]
[378714133,1754986246234,-460.0,0.00018929,2]
[378714134,1754986246244,-957.64,0.00018929,2]
[378714135,1754986246252,-885.85,0.00018929,2]
[378714136,1754986246262,-575.08,0.00018929,2]
[378714137,1754986246271,-460.0,0.00018929,2]
[378714138,1754986246280,-639.46,0.00018929,2]
[378714139,1754986246289,-460.0,0.00018929,2]
[378714140,1754986246299,-310.0694154,0.00018929,2]
[378714141,1754986246309,-460.0,0.00018929,2]
[378714142,1754986246318,-507.48777803,0.00018929,2]
[378714143,1754986246327,-460.0,0.00018929,2]
[378714144,1754986246337,-1007.31,0.00018929,2]
[378714145,1754986246346,-8806.5,0.00018929,2]
[378714146,1754986246355,-639.62,0.00018929,2]
[378714147,1754986246365,-1391.23,0.00018929,2]
[378714148,1754986246374,-460.0,0.00018929,2]
[378714149,1754986246383,-460.0,0.00018929,2]
[378714150,1754986246393,-460.0,0.00018929,2]
[378714151,1754986246402,-468.08749392,0.00018929,2]
[378714152,1754986246412,-2828.99,0.00018929,2]
[378714153,1754986246422,-460.0,0.00018929,2]
[378714154,1754986246431,-460.0,0.00018929,2]
[378714155,1754986246439,-460.0,0.00018929,2]
[378714156,1754986246449,-1297.64,0.00018929,2]
[378714157,1754986246458,-460.0,0.00018929,2]
[378714158,1754986246467,-643.4,0.00018929,2]
[378714159,1754986246476,-336.19999651,0.00018929,2]
[378714160,1754986246485,-1756.7,0.00018929,2]
[378714161,1754986246495,-3309.06,0.00018929,2]
[378714162,1754986246504,-487.97549215,0.00018929,2]
[378714163,1754986246514,-461.66309952,0.00018929,2]
[378714164,1754986246523,-567.76,0.00018929,2]
[378714165,1754986246532,-460.0,0.00018929,2]
[378714166,1754986246541,-825.83,0.00018929,2]
[378714167,1754986246551,-1281.05,0.00018929,2]
[378714168,1754986246560,-637.17,0.00018929,2]
[378714169,1754986246569,-460.0,0.00018929,2]
[378714170,1754986246579,-464.76166103,0.00018929,2]
[378714171,1754986246590,-460.0,0.00018929,2]
[378714172,1754986246599,-460.0,0.00018929,2]
[378714173,1754986246608,-460.0,0.00018929,2]
[378714174,1754986246618,-460.0,0.00018929,2]
[378714175,1754986246627,-387.8399338,0.00018929,2]
[378714176,1754986246636,-467.90926492,0.00018929,2]
[378714177,1754986246645,-552.82,0.00018929,2]
[378714178,1754986246655,-460.0,0.00018929,2]
[378714179,1754986246664,-3003.19,0.00018929,2]
[378714180,1754986246674,-462.4573583,0.00018929,2]
[378714181,1754986246684,-460.0,0.00018929,2]
[378714182,1754986246695,-460.0,0.00018929,2]
[378714183,1754986246704,-460.0,0.00018929,2]
[378714184,1754986246715,-2056.42,0.00018929,2]
[378714185,1754986246724,-468.02075597,0.00018929,2]
[378714186,1754986246734,-765.35,0.00018929,2]
[378714187,1754986246744,-460.0,0.00018929,2]
[378714188,1754986246754,-460.0,0.00018929,2]
[378714189,1754986246763,-1872.73,0.00018929,2]
[378714190,1754986246773,-461.65659484,0.00018929,2]
[378714191,1754986246783,-462.810219,0.00018929,2]
[378714192,1754986246793,-460.0,0.00018929,2]
[378714193,1754986246802,-1158.19,0.00018929,2]
[378714194,1754986246812,-460.0,0.00018929,2]
[378714195,1754986246821,-1132.04,0.00018929,2]
[378714196,1754986246830,-460.0,0.00018929,2]
[378714197,1754986246840,-460.0,0.00018929,2]
[378714198,1754986246855,-2696.39,0.00018929,2]
[378714199,1754986246865,-460.0,0.00018929,2]
[378714200,1754986246875,-460.0,0.00018929,2]
[378714201,1754986246886,-460.0,0.00018929,2]
[378714202,1754986246896,-669.14,0.00018929,2]
[378714203,1754986246906,-3030.53,0.00018929,2]
[378714204,1754986246917,-460.0,0.00018929,2]
[378714205,1754986246927,-462.04664803,0.00018929,2]
[378714206,1754986246936,-700.54,0.00018929,2]
[378714207,1754986246946,-460.0,0.00018929,2]
[378714208,1754986246957,-542.14,0.00018929,2]
[378714209,1754986246976,-460.0,0.00018929,2]
[378714210,1754986246993,-460.0,0.00018929,2]
[378714211,1754986247006,-460.0,0.00018929,2]
[378714212,1754986247015,-460.0,0.00018929,2]
[378714213,1754986247027,-460.0,0.00018929,2]
[378714214,1754986247037,-460.0,0.00018929,2]
[378714215,1754986247046,-1265.19,0.00018929,2]
[378714216,1754986247055,-460.0,0.00018929,2]
[378714217,1754986247064,-460.0,0.00018929,2]
[378714218,1754986247074,-1110.91,0.00018929,2]
[378714219,1754986247083,-460.0,0.00018929,2]
[378714220,1754986247092,-460.0,0.00018929,2]
[378714221,1754986247101,-478.03949035,0.00018929,2]
[378714222,1754986247110,-460.0,0.00018929,2]
[378714223,1754986247120,-460.0,0.00018929,2]
[378714224,1754986247129,-460.0,0.0001893,2]
[378714225,1754986247139,-151.0,0.00018931,2]
[378714226,1754986247148,-151.0,0.00018931,2]
[378714227,1754986247158,-500.0,0.00018931,2]
[378714228,1754986247167,-151.0,0.00018931,2]
[378714229,1754986247177,-500.0,0.00018931,2]
[378714230,1754986247186,-500.0,0.00018931,2]
[378714231,1754986247195,-500.0,0.00018931,2]
[378714232,1754986247205,-151.0,0.00018931,2]
[378714233,1754986247214,-151.0,0.00018931,2]
[378714234,1754986247224,-203.47653186,0.00018931,2]
[378714235,1754986247235,-564.92559148,0.00018931,2]
[378714236,1754986247246,-500.0,0.00018931,2]
[378714237,1754986247256,-151.0,0.00018931,2]
[378714238,1754986247267,-500.0,0.00018931,2]
[378714239,1754986247277,-151.0,0.00018931,2]
[378714240,1754986247286,-151.0,0.00018931,2]
[378714241,1754986247296,-151.0,0.00018931,2]
[378714242,1754986247306,-585.66218537,0.00018931,2]
[378714243,1754986247315,-500.0,0.00018931,2]
[378714244,1754986247324,-500.0,0.00018931,2]
[378714245,1754986247334,-1043.33,0.00018931,2]
[378714246,1754986247345,-638.81,0.00018931,2]
[378714247,1754986247355,-696.6,0.00018931,2]
[378714248,1754986247365,-462.74056031,0.00018931,2]
[378714249,1754986247375,-460.0,0.00018931,2]
[378714250,1754986247384,-1486.58,0.00018931,2]
[378714251,1754986247394,-460.0,0.00018931,2]
[378714252,1754986247403,-479.11,0.00018931,2]
[378714253,1754986247413,-460.0,0.00018931,2]
[378714254,1754986247423,-909.88,0.00018931,2]
[378714255,1754986247433,-602.48,0.00018931,2]
[378714256,1754986247443,-460.0,0.00018931,2]
[378714257,1754986247453,-460.0,0.00018931,2]
[378714258,1754986247462,-460.0,0.00018931,2]
[378714259,1754986247472,-521.2,0.00018931,2]
[378714260,1754986247482,-460.0,0.00018931,2]
[378714261,1754986247491,-460.0,0.00018931,2]
[378714262,1754986247501,-817.95,0.00018931,2]
[378714263,1754986247512,-539.04,0.00018931,2]
[378714264,1754986247521,-460.0,0.00018931,2]
[378714265,1754986247531,-460.0,0.00018931,2]
[378714266,1754986247541,-1596.61,0.00018931,2]
[378714267,1754986247551,-460.0,0.00018931,2]
[378714268,1754986247560,-661.3,0.00018931,2]
[378714269,1754986247570,-460.0,0.00018931,2]
[378714270,1754986247580,-469.13252113,0.00018931,2]
[378714271,1754986247590,-460.0,0.00018931,2]
[378714272,1754986247600,-629.44,0.00018931,2]
[378714273,1754986247609,-466.75475142,0.00018931,2]
[378714274,1754986247619,-460.0,0.00018931,2]
[378714275,1754986247628,-460.0,0.00018931,2]
[378714276,1754986247638,-460.0,0.00018931,2]
[378714277,1754986247648,-460.0,0.00018931,2]
[378714278,1754986247658,-460.0,0.00018931,2]
[378714279,1754986247668,-460.0,0.00018931,2]
[378714280,1754986247677,-460.0,0.00018931,2]
[378714281,1754986247687,-460.0,0.00018931,2]
[378714282,1754986247697,-460.0,0.00018931,2]
[378714283,1754986247707,-460.0,0.00018931,2]
[378714284,1754986247718,-460.0,0.00018931,2]
[378714285,1754986247727,-2125.42,0.00018931,2]
[378714286,1754986247737,-460.0,0.00018931,2]
[378714287,1754986247750,-460.0,0.00018931,2]
[378714288,1754986247764,-460.0,0.00018931,2]
[378714289,1754986247774,-460.0,0.00018931,2]
[378714290,1754986247784,-460.0,0.00018931,2]
[378714291,1754986247794,-460.0,0.00018931,2]
[378714292,1754986247804,-460.0,0.00018931,2]
[378714293,1754986247814,-460.0,0.00018931,2]
[378714294,1754986247824,-460.0,0.00018931,2]
[378714295,1754986247835,-460.0,0.00018932,2]
[378714296,1754986247845,-588.06,0.00018932,2]
[378714297,1754986247855,-467.35413678,0.00018932,2]
[378714298,1754986247864,-460.0,0.00018932,2]
[378714299,1754986247874,-460.0,0.00018932,2]
[378714300,1754986247884,-460.0,0.00018932,2]
[378714301,1754986247894,-460.0,0.00018932,2]
[378714302,1754986247904,-460.0,0.00018932,2]
[378714303,1754986247918,-460.0,0.00018932,2]
[378714304,1754986247928,-460.0,0.00018932,2]
[378714305,1754986247938,-460.0,0.00018932,2]
[378714306,1754986247948,-460.0,0.00018932,2]
[378714307,1754986247957,-471.67666019,0.00018932,2]
[378714308,1754986247967,-460.0,0.00018932,2]
[378714309,1754986247977,-432.23355846,0.00018932,2]
[378714310,1754986247987,-509.93,0.00018932,2]
[378714311,1754986247998,-503.23,0.00018932,2]
[378714312,1754986248008,-460.0,0.00018932,2]
[378714313,1754986248017,-460.0,0.00018932,2]
[378714314,1754986248031,-460.0,0.00018932,2]
[378714315,1754986248041,-460.0,0.00018932,2]
[378714316,1754986248050,-460.0,0.00018932,2]
[378714317,1754986248061,-460.0,0.00018932,2]
[378714318,1754986248072,-238.67174852,0.00018932,2]
[378714319,1754986248082,-460.0,0.00018932,2]
[378714320,1754986248091,-463.95288536,0.00018932,2]
[378714321,1754986248100,-460.0,0.00018932,2]
[378714322,1754986248110,-460.0,0.00018932,2]
[378714323,1754986248120,-500.0,0.00018932,2]
[378714324,1754986248129,-460.0,0.00018932,2]
[378714325,1754986248139,-460.0,0.00018932,2]
[378714326,1754986248148,-462.38994369,0.00018932,2]
[378714327,1754986248157,-460.0,0.00018932,2]
[378714328,1754986248166,-460.0,0.00018932,2]
[378714329,1754986248176,-460.0,0.00018932,2]
[378714330,1754986248186,-460.0,0.00018932,2]
[378714331,1754986248196,-460.0,0.00018932,2]
[378714332,1754986248212,-331.91533653,0.00018932,2]
[378714333,1754986248222,-465.02412611,0.00018932,2]
[378714334,1754986248231,-1003.66922973,0.00018932,2]
[378714335,1754986248241,-461.14465824,0.00018932,2]
[378714336,1754986248251,-339.29147138,0.00018932,2]
[378714337,1754986248261,-463.11410216,0.00018932,2]
[378714338,1754986248271,-460.0,0.00018932,2]
[378714339,1754986248281,-460.0,0.00018932,2]
[378714340,1754986248291,-460.0,0.00018932,2]
[378714341,1754986248300,-460.0,0.00018932,2]
[378714342,1754986248310,-462.43535668,0.00018932,2]
[378714343,1754986248319,-473.39,0.00018932,2]
[378714344,1754986248329,-460.0,0.00018932,2]
[378714345,1754986248338,-460.0,0.00018932,2]
[378714346,1754986248348,-460.0,0.00018932,2]
[378714347,1754986248357,-466.38790646,0.00018932,2]
[378714348,1754986248367,-460.0,0.00018932,2]
[378714349,1754986248385,-460.0,0.00018932,2]
[378714350,1754986248396,-460.0,0.00018932,2]
[378714351,1754986248405,-460.0,0.00018932,2]
[378714352,1754986248415,-466.29801671,0.00018932,2]
[378714353,1754986248424,-460.0,0.00018932,2]
[378714354,1754986248435,-460.0,0.00018932,2]
[378714355,1754986248445,-460.0,0.00018932,2]
[378714356,1754986248455,-1011.16,0.00018932,2]
[378714357,1754986248465,-460.0,0.00018932,2]
[378714358,1754986248475,-460.0,0.00018932,2]
[378714359,1754986248485,-460.0,0.00018932,2]
[378714360,1754986248494,-460.0,0.00018932,2]
[378714361,1754986248504,-460.0,0.00018932,2]
[378714362,1754986248514,-788.95,0.00018932,2]
[378714363,1754986248523,-460.0,0.00018932,2]
[378714364,1754986248533,-460.0,0.00018932,2]
[378714365,1754986248543,-460.0,0.00018932,2]
[378714366,1754986248552,-460.0,0.00018932,2]
[378714367,1754986248563,-460.0,0.00018932,2]
[378714368,1754986248573,-460.0,0.00018932,2]
[378714369,1754986248582,-460.0,0.00018932,2]
[378714370,1754986248592,-158.47119424,0.00018932,2]
[378714371,1754986248603,-460.0,0.00018932,2]
[378714372,1754986248613,-460.0,0.00018932,2]
[378714373,1754986248623,-460.0,0.00018932,2]
[378714374,1754986248633,-460.0,0.00018932,2]
[378714375,1754986248643,-450.0,0.00018932,2]
[378714376,1754986248654,-501.614482,0.00018933,2]
[378714377,1754986248664,-500.0,0.0001894,2]
[378714378,1754986248674,-3920.35747434,0.00018967,2]
[378714379,1754986248684,-319.09163089,0.00018972,2]
[378714380,1754986248694,-203.14386569,0.00018973,2]
[378714381,1754986248704,-500.0,0.00018973,2]
[378714382,1754986248714,-440.2549464,0.00018973,2]
[378714383,1754986248726,-500.0,0.00018973,2]
[378714384,1754986248736,-500.0,0.00018973,2]
[378714385,1754986248747,-212.91207987,0.00018973,2]
[378714386,1754986248757,-503.63314186,0.00018973,2]
[378714387,1754986248767,-509.88605288,0.00018973,2]
[378714388,1754986248776,-200.56360519,0.00018999,2]
[378714389,1754986248786,-108584.38,0.00019,2]
[378714390,1754986248796,-205.0874113,0.00019,2]
[378714391,1754986248806,-151.0,0.00019,2]
[378714392,1754986248816,-151.0,0.00019,2]
[378714393,1754986248826,-323.1906041,0.00019,2]
[378714394,1754986248837,-871.3981615,0.00019,2]
[378714395,1754986248847,-591.5660559,0.00019,2]
[378714396,1754986248857,-160.0,0.00019,2]
[378714397,1754986248868,-160.0,0.00019,2]
[378714398,1754986248878,-166.0,0.00019,2]
[378714399,1754986248887,-203.00241099,0.00019,2]
[378714400,1754986248898,-166.0,0.00019,2]
[378714401,1754986248908,-166.0,0.00019,2]
[378714402,1754986248918,-166.0,0.00019,2]
[378714403,1754986248928,-166.0,0.00019,2]
[378714404,1754986248938,-1760.0,0.00019,2]
[378714405,1754986248948,-166.0,0.00019,2]
[378714406,1754986248958,-1760.0,0.00019,2]
[378714407,1754986248967,-166.0,0.00019,2]
[378714408,1754986248977,-1760.0,0.00019,2]
[378714409,1754986248987,-166.0,0.00019,2]
[378714410,1754986248997,-1760.0,0.00019,2]
[378714411,1754986249006,-172.0,0.00019,2]
[378714412,1754986249015,-1760.0,0.00019,2]
[378714413,1754986249027,-1760.0,0.00019,2]
[378714414,1754986249037,-151.0,0.00019,2]
[378714415,1754986249047,-1760.0,0.00019,2]
[378714416,1754986249057,-151.0,0.00019,2]
[378714417,1754986249066,-1760.0,0.00019,2]
[378714418,1754986249076,-1760.0,0.00019,2]
[378714419,1754986249086,-1760.0,0.00019,2]
[378714420,1754986249095,-1760.0,0.00019,2]
[378714421,1754986249105,-1760.0,0.00019,2]
[378714422,1754986249115,-1760.0,0.00019,2]
[378714423,1754986249125,-1760.0,0.00019,2]
[378714424,1754986249135,-325.0,0.00019,2]
[378714425,1754986249145,-528.91470402,0.00019,2]
[378714426,1754986249155,-325.0,0.00019,2]
[378714427,1754986249164,-548.66530135,0.00019,2]
[378714428,1754986249174,-325.0,0.00019,2]
[378714429,1754986249183,-1760.0,0.00019,2]
[378714430,1754986249193,-325.0,0.00019,2]
[378714431,1754986249204,-1760.0,0.00019,2]
[378714432,1754986249214,-325.0,0.00019,2]
[378714433,1754986249224,-1760.0,0.00019,2]
[378714434,1754986249234,-325.0,0.00019,2]
[378714435,1754986249244,-1760.0,0.00019,2]
[378714436,1754986249254,-325.0,0.00019,2]
[378714437,1754986249264,-1760.0,0.00019,2]
[378714438,1754986249274,-325.0,0.00019,2]
[378714439,1754986249284,-1760.0,0.00019,2]
[378714440,1754986249294,-153.32695641,0.00019,2]
[378714441,1754986249733,-894.91478098,0.00018655,2]
[378714442,1754986257518,-151.0,0.00018654,2]
[378714443,1754986257527,-421.66521902,0.00018655,2]
[378714444,1754986257537,-603.71,0.00018655,2]
[378714445,1754986257546,-417.879,0.00018729,2]
[378714446,1754986257555,-754.76494625,0.00018929,2]
[378714447,1754986257567,-561.81505375,0.00018929,2]
[378714448,1754986257578,-171.67304359,0.00019,2]
[378714449,1754986257587,-1760.0,0.00019,2]
[378714450,1754986257596,-325.0,0.00019,2]
[378714451,1754986257605,-325.0,0.00019,2]
[378714452,1754986257615,-1760.0,0.00019,2]
[378714453,1754986257624,-325.0,0.00019,2]
[378714454,1754986257633,-325.0,0.00019,2]
[378714455,1754986257645,-1760.0,0.00019,2]
[378714456,1754986257654,-1760.0,0.00019,2]
[378714457,1754986257663,-325.0,0.00019,2]
[378714458,1754986257672,-1760.0,0.00019,2]
[378714459,1754986257681,-53.96190566,0.00019,2]
[378714460,1754986277091,172.1845301,0.00018554,2]
[378714461,1754986296341,85989.8242879,0.00017791,2]
[378714462,1754986303590,154.819654,0.000231,30]
[378714463,1754986305745,370000.0,0.00018553,2]
[378714464,1754986466533,370000.0,0.00018553,2]
[378714465,1754986512660,18474.72000445,0.0001901,6]
[378714466,1754986612183,535.600114,0.00013699,2]
[378714468,1754986624689,1690.418018,0.00017654,2]
[378714469,1754986629359,85097.36920615,0.00018554,2]
[378714470,1754986711878,6381.14992795,0.00018552,2]
[378714471,1754986902921,154.819654,0.000231,30]
[378714472,1754986903362,597.207664,0.00018091,2]
[378714473,1754986903702,1433.15221051,0.00018092,2]
[378714474,1754986916841,10000.0,0.00017653,2]
[378714475,1754986940000,908.87848811,0.00018555,2]
[378714476,1754986992104,5583.50618693,0.00018552,2]
[378714477,1754986997282,21304.01425073,0.00017654,2]
[378714478,1754986997310,6321.95627817,0.00017654,2]
[378714479,1754987045329,24900.0,0.00017652,2]
[378714480,1754987272861,38796.64914719,0.00018,2]
[378714481,1754987272956,4885.56791359,0.00018551,2]
[378714482,1754987280642,727.10279052,0.00018555,2]
[378714483,1754987319415,2964.0043592,0.00018082,2]
[378714484,1754987320245,225.14748105,0.00018,2]
[378714485,1754987322570,29372.7035239,0.00018,2]
[378714521,1754987431957,-152.87880415,0.00018641,2]
[378714522,1754987431966,-178.13159585,0.00018642,3]
[378714523,1754987432011,-262.58041745,0.00018642,3]
[378714524,1754987432023,-283.9879867,0.00018642,3]
[378714525,1754987432033,-291.02972383,0.00018648,2]
[378714528,1754987432065,-8.97027617,0.00018648,2]
[378714530,1754987432075,-300.0,0.00018648,2]
[378714532,1754987432085,-272.0,0.00018648,2]
[378714534,1754987432093,-772.78503792,0.00018648,2]
[378714535,1754987432106,-427.21496208,0.00018648,2]
[378714536,1754987432115,-18.9408096,0.00018648,2]
[378714546,1754987437856,-281.0591904,0.00018648,2]
[378714547,1754987437865,-537.02,0.00018649,2]
[378714548,1754987437874,-460.0,0.00018649,2]
[378714549,1754987437882,-500.0,0.00018649,2]
[378714550,1754987437891,-247.796369,0.00018649,2]
[378714551,1754987437899,-416.56711469,0.00018649,2]
[378714552,1754987437908,-200.0,0.00018649,2]
[378714553,1754987437916,-340.03117192,0.00018649,2]
[378714554,1754987437924,-500.0,0.00018649,2]
[378714555,1754987437933,-460.0,0.00018649,2]
[378714556,1754987437943,-460.0,0.00018649,2]
[378714557,1754987437952,-1802.32,0.00018649,2]
[378714558,1754987437962,-460.0,0.00018649,2]
[378714559,1754987437971,-3725.91,0.00018649,2]
[378714560,1754987437980,-465.55179134,0.00018649,2]
[378714561,1754987437990,-460.0,0.00018649,2]
[378714562,1754987437999,-204.35736576,0.00018649,2]
[378714563,1754987438008,-490.74,0.00018649,2]
[378714564,1754987438018,-460.0,0.00018649,2]
[378714565,1754987438027,-748.88,0.00018649,2]
[378714566,1754987438036,-2299.04,0.00018649,2]
[378714567,1754987438045,-460.0,0.00018649,2]
[378714568,1754987438053,-2681.53,0.00018649,2]
[378714569,1754987438061,-453.05344749,0.00018649,2]
[378714570,1754987438070,-460.0,0.00018649,2]
[378714571,1754987438079,-460.0,0.00018649,2]
[378714572,1754987438088,-460.0,0.00018649,2]
[378714573,1754987438098,-527.2,0.0001865,2]
[378714574,1754987438108,-510.86,0.0001865,2]
[378714575,1754987438117,-3499.82,0.0001865,2]
[378714576,1754987438126,-1702.19,0.0001865,2]
[378714577,1754987438136,-790.24,0.0001865,2]
[378714578,1754987438147,-460.0,0.0001865,2]
[378714579,1754987438157,-460.0,0.0001865,2]
[378714580,1754987438166,-425.67931036,0.0001865,2]
[378714581,1754987438175,-768.31,0.0001865,2]
[378714582,1754987438183,-1081.15,0.0001865,2]
[378714583,1754987438192,-771.78,0.0001865,2]
[378714584,1754987438201,-522.55,0.0001865,2]
[378714585,1754987438210,-460.0,0.0001865,2]
[378714586,1754987438219,-980.32,0.0001865,2]
[378714587,1754987438228,-541.70530724,0.0001865,2]
[378714588,1754987438238,-1156.9,0.0001865,2]
[378714589,1754987438246,-1562.69,0.0001865,2]
[378714590,1754987438253,-460.0,0.0001865,2]
[378714591,1754987438260,-460.0,0.0001865,2]
[378714592,1754987438266,-460.0,0.0001865,2]
[378714593,1754987438273,-709.69,0.0001865,2]
[378714594,1754987438280,-719.13,0.0001865,2]
[378714595,1754987438289,-297.43263368,0.0001865,2]
[378714596,1754987438299,-460.0,0.00018651,2]
[378714597,1754987438308,-460.0,0.00018651,2]
[378714598,1754987438317,-460.0,0.00018651,2]
[378714599,1754987438326,-816.05,0.00018651,2]
[378714600,1754987438336,-594.05,0.00018651,2]
[378714601,1754987438346,-460.0,0.00018651,2]
[378714602,1754987438355,-460.0,0.00018651,2]
[378714603,1754987438364,-460.0,0.00018651,2]
[378714604,1754987438374,-460.0,0.00018651,2]
[378714605,1754987438383,-544.84,0.00018651,2]
[378714606,1754987438393,-460.0,0.00018651,2]
[378714607,1754987438402,-383.68391618,0.00018651,2]
[378714608,1754987438412,-491.64,0.00018651,2]
[378714609,1754987438421,-871.7,0.00018651,2]
[378714610,1754987438430,-653.97,0.00018651,2]
[378714611,1754987438440,-460.0,0.00018651,2]
[378714612,1754987438450,-460.0,0.00018651,2]
[378714613,1754987438459,-460.0,0.00018651,2]
[378714614,1754987438469,-684.86,0.00018651,2]
[378714615,1754987438479,-460.0,0.00018651,2]
[378714616,1754987438488,-460.0,0.00018651,2]
[378714617,1754987438498,-460.0,0.00018651,2]
[378714618,1754987438507,-897.0,0.00018651,2]
[378714619,1754987438517,-586.17,0.00018651,2]
[378714620,1754987438527,-527.15,0.00018651,2]
[378714621,1754987438536,-812.03,0.00018651,2]
[378714622,1754987438545,-460.0,0.00018651,2]
[378714623,1754987438554,-460.0,0.00018651,2]
[378714624,1754987438564,-351.44636609,0.00018651,2]
[378714625,1754987438573,-583.10008186,0.00018651,2]
[378714626,1754987438583,-460.0,0.00018651,2]
[378714627,1754987438592,-942.53,0.00018651,2]
[378714628,1754987438601,-460.0,0.00018651,2]
[378714629,1754987438613,-463.12149501,0.00018651,2]
[378714630,1754987438623,-460.0,0.00018651,2]
[378714631,1754987438632,-605.48,0.00018651,2]
[378714632,1754987438642,-460.0,0.00018651,2]
[378714633,1754987438651,-8108.68,0.00018651,2]
[378714634,1754987438661,-341.76215351,0.00018651,2]